[Event "December 5 Early 2023"]
[Site "https://www.chess.com"]
[Date "2023.12.05"]
[Round "9"]
[White "Mangialardo, Tiago Carvalho"]
[Black "Zaim, Marian"]
[Result "1-0"]
[Board "159"]
[TimeControl "180+1"]
[WhiteFideId "2130718"]
[BlackFideId "1204114"]
[WhiteElo "2070"]
[BlackElo "2331"]
[WhiteTeam "BRA"]
[BlackTeam "ROU"]
[WhiteClock "0:02:12"]
[BlackClock "0:02:23"]

1. e4 {[%clk 0:02:32]}  d6 {[%clk 0:02:57]} 2. d4 {[%clk 0:02:32]}  Nf6 {[%clk 0:02:57]} 3. Nd2 {[%clk 0:02:32]}  g6 {[%clk 0:02:57]} 4. f4 {[%clk 0:02:31]}  Bg7 {[%clk 0:02:57]} 5. Ngf3 {[%clk 0:02:32]}  O-O {[%clk 0:02:57]} 6. e5 {[%clk 0:02:33]}  Nfd7 {[%clk 0:02:56]} 7. Nb3 {[%clk 0:02:32]}  b6 {[%clk 0:02:54]} 8. Bd3 {[%clk 0:02:32]}  Bb7 {[%clk 0:02:53]} 9. h4 {[%clk 0:02:31]}  h5 {[%clk 0:02:52]} 10. O-O {[%clk 0:02:30]}  c5 {[%clk 0:02:52]} 11. c3 {[%clk 0:02:30]}  Nc6 {[%clk 0:02:51]} 12. Ng5 {[%clk 0:02:29]}  cxd4 {[%clk 0:02:49]} 13. e6 {[%clk 0:02:24]}  Nc5 {[%clk 0:02:44]} 14. exf7+ {[%clk 0:02:23]}  Kh8 {[%clk 0:02:44]} 15. Bxg6 {[%clk 0:02:18]}  Bh6 {[%clk 0:02:29]} 16. Qxh5 {[%clk 0:02:13]}  Kg7 {[%clk 0:02:29]} 17. Nxc5 {[%clk 0:02:12]}  Bc8 {[%clk 0:02:26]} 18. Nce6+ {[%clk 0:02:11]}  Bxe6 {[%clk 0:02:25]} 19. Nxe6+ {[%clk 0:02:12]}  Kh8 {[%clk 0:02:23]} 20. Qxh6# {[%clk 0:02:12]} 1-0

[Event "December 5 Early 2023"]
[Site "https://www.chess.com"]
[Date "2023.12.05"]
[Round "10"]
[White "Aronian, Levon"]
[Black "Andreikin, Dmitry"]
[Result "1/2-1/2"]
[Board "1"]
[TimeControl "180+1"]
[WhiteFideId "13300474"]
[BlackFideId "4158814"]
[WhiteElo "3108"]
[BlackElo "3107"]
[WhiteTeam "USA"]
[BlackTeam "FID"]
[WhiteClock "0:00:09"]
[BlackClock "0:00:06"]

1. e4 {[%clk 0:03:00]}  e5 {[%clk 0:02:55]} 2. Nf3 {[%clk 0:03:01]}  Nc6 {[%clk 0:02:56]} 3. Bb5 {[%clk 0:03:00]}  f5 {[%clk 0:02:56]} 4. d3 {[%clk 0:02:59]}  fxe4 {[%clk 0:02:56]} 5. dxe4 {[%clk 0:02:59]}  Nf6 {[%clk 0:02:56]} 6. Bg5 {[%clk 0:02:58]}  Bb4+ {[%clk 0:02:38]} 7. c3 {[%clk 0:02:49]}  Bc5 {[%clk 0:02:38]} 8. Bxf6 {[%clk 0:02:37]}  Qxf6 {[%clk 0:02:36]} 9. Qd5 {[%clk 0:02:38]}  Bd6 {[%clk 0:02:13]} 10. Nbd2 {[%clk 0:02:37]}  Ne7 {[%clk 0:02:13]} 11. Qb3 {[%clk 0:02:34]}  c6 {[%clk 0:02:12]} 12. Be2 {[%clk 0:02:27]}  Bc5 {[%clk 0:02:10]} 13. Nf1 {[%clk 0:02:14]}  Ng6 {[%clk 0:02:03]} 14. g3 {[%clk 0:02:07]}  d5 {[%clk 0:01:55]} 15. Ne3 {[%clk 0:01:49]}  Bxe3 {[%clk 0:00:59]} 16. fxe3 {[%clk 0:01:49]}  O-O {[%clk 0:00:58]} 17. exd5 {[%clk 0:01:35]}  cxd5 {[%clk 0:00:54]} 18. h4 {[%clk 0:01:08]}  Bg4 {[%clk 0:00:43]} 19. Rf1 {[%clk 0:01:08]}  Qd6 {[%clk 0:00:31]} 20. O-O-O {[%clk 0:01:02]}  Ne7 {[%clk 0:00:31]} 21. e4 {[%clk 0:00:55]}  Qh6+ {[%clk 0:00:31]} 22. Rd2 {[%clk 0:00:32]}  Kh8 {[%clk 0:00:28]} 23. Ng5 {[%clk 0:00:30]}  Rxf1+ {[%clk 0:00:25]} 24. Bxf1 {[%clk 0:00:30]}  Rf8 {[%clk 0:00:24]} 25. Be2 {[%clk 0:00:24]}  Bxe2 {[%clk 0:00:21]} 26. Rxe2 {[%clk 0:00:24]}  Qh5 {[%clk 0:00:19]} 27. Qd1 {[%clk 0:00:21]}  h6 {[%clk 0:00:18]} 28. Ne6 {[%clk 0:00:21]}  Rf6 {[%clk 0:00:17]} 29. exd5 {[%clk 0:00:19]}  Nxd5 {[%clk 0:00:17]} 30. Rd2 {[%clk 0:00:12]}  Qxd1+ {[%clk 0:00:11]} 31. Rxd1 {[%clk 0:00:12]}  Rxe6 {[%clk 0:00:07]} 32. Rxd5 {[%clk 0:00:12]}  Rg6 {[%clk 0:00:07]} 33. Rxe5 {[%clk 0:00:12]}  Rxg3 {[%clk 0:00:07]} 34. Re7 {[%clk 0:00:12]}  Rg4 {[%clk 0:00:06]} 35. h5 {[%clk 0:00:09]}  Rg5 {[%clk 0:00:05]} 36. Rxb7 {[%clk 0:00:09]}  Rxh5 {[%clk 0:00:06]} 37. Rxa7 {[%clk 0:00:09]}  g5 {[%clk 0:00:06]} 38. Kd2 {[%clk 0:00:08]}  Rh2+ {[%clk 0:00:06]} 39. Ke3 {[%clk 0:00:09]}  Rxb2 {[%clk 0:00:07]} 40. a4 {[%clk 0:00:09]}  g4 {[%clk 0:00:06]} 41. Kf4 {[%clk 0:00:07]}  h5 {[%clk 0:00:05]} 42. Ra5 {[%clk 0:00:07]}  Rf2+ {[%clk 0:00:05]} 43. Kg3 {[%clk 0:00:07]}  Rf3+ {[%clk 0:00:06]} 44. Kg2 {[%clk 0:00:08]}  Rxc3 {[%clk 0:00:04]} 45. Rxh5+ {[%clk 0:00:08]}  Kg7 {[%clk 0:00:04]} 46. Rg5+ {[%clk 0:00:08]}  Kf6 {[%clk 0:00:05]} 47. Rxg4 {[%clk 0:00:09]}  Ra3 {[%clk 0:00:05]} 48. Rf4+ {[%clk 0:00:09]}  Ke5 {[%clk 0:00:06]} 49. Rh4 {[%clk 0:00:09]}  Kd5 {[%clk 0:00:06]} 50. a5 {[%clk 0:00:09]}  Kc6 {[%clk 0:00:05]} 51. a6 {[%clk 0:00:09]}  Rxa6 {[%clk 0:00:05]} 52. Rh6+ {[%clk 0:00:09]}  Kb7 {[%clk 0:00:05]} 53. Rxa6 {[%clk 0:00:09]}  Kxa6 {[%clk 0:00:06]} 1/2-1/2

[Event "December 5 Early 2023"]
[Site "https://www.chess.com"]
[Date "2023.12.05"]
[Round "10"]
[White "Drygalov, Sergey"]
[Black "Matlakov, Maxim"]
[Result "1-0"]
[Board "2"]
[TimeControl "180+1"]
[WhiteFideId "24171743"]
[BlackFideId "4168003"]
[WhiteElo "2978"]
[BlackElo "3013"]
[WhiteTeam "RUS"]
[BlackTeam "RUS"]
[WhiteClock "0:00:02"]
[BlackClock "0:00:00"]

1. d4 {[%clk 0:03:00]}  Nf6 {[%clk 0:03:00]} 2. c4 {[%clk 0:03:00]}  e6 {[%clk 0:03:00]} 3. Nf3 {[%clk 0:03:01]}  b6 {[%clk 0:03:01]} 4. g3 {[%clk 0:03:01]}  Ba6 {[%clk 0:03:00]} 5. Qc2 {[%clk 0:03:00]}  c5 {[%clk 0:03:00]} 6. d5 {[%clk 0:03:00]}  exd5 {[%clk 0:02:59]} 7. cxd5 {[%clk 0:03:00]}  Bb7 {[%clk 0:03:00]} 8. Bg2 {[%clk 0:03:00]}  Nxd5 {[%clk 0:03:00]} 9. O-O {[%clk 0:03:00]}  Nc6 {[%clk 0:03:00]} 10. Rd1 {[%clk 0:02:59]}  Be7 {[%clk 0:03:00]} 11. Qf5 {[%clk 0:02:50]}  Nf6 {[%clk 0:03:00]} 12. Nc3 {[%clk 0:02:48]}  O-O {[%clk 0:02:57]} 13. e4 {[%clk 0:02:42]}  g6 {[%clk 0:02:57]} 14. Qf4 {[%clk 0:02:40]}  Nd4 {[%clk 0:02:51]} 15. Nxd4 {[%clk 0:02:36]}  cxd4 {[%clk 0:02:52]} 16. Rxd4 {[%clk 0:02:36]}  Re8 {[%clk 0:02:41]} 17. e5 {[%clk 0:02:06]}  Nh5 {[%clk 0:02:36]} 18. Qg4 {[%clk 0:02:06]}  Bxg2 {[%clk 0:02:31]} 19. Kxg2 {[%clk 0:02:07]}  Qc8 {[%clk 0:02:22]} 20. Qxd7 {[%clk 0:02:02]}  Bc5 {[%clk 0:02:04]} 21. Qxc8 {[%clk 0:01:59]}  Raxc8 {[%clk 0:02:05]} 22. Rd5 {[%clk 0:01:58]}  Rcd8 {[%clk 0:01:54]} 23. Rxd8 {[%clk 0:01:53]}  Rxd8 {[%clk 0:01:55]} 24. Bg5 {[%clk 0:01:53]}  Rd3 {[%clk 0:01:52]} 25. Ne4 {[%clk 0:01:40]}  Bd4 {[%clk 0:01:50]} 26. g4 {[%clk 0:01:40]}  Ng7 {[%clk 0:01:22]} 27. Rc1 {[%clk 0:01:26]}  Ne6 {[%clk 0:01:15]} 28. Rc8+ {[%clk 0:01:26]}  Kg7 {[%clk 0:01:15]} 29. Nf6 {[%clk 0:01:26]}  Nxg5 {[%clk 0:01:13]} 30. h4 {[%clk 0:00:48]}  Bxe5 {[%clk 0:00:28]} 31. hxg5 {[%clk 0:00:39]}  Bxf6 {[%clk 0:00:28]} 32. gxf6+ {[%clk 0:00:40]}  Kxf6 {[%clk 0:00:29]} 33. Rc7 {[%clk 0:00:39]}  Rd4 {[%clk 0:00:24]} 34. Kg3 {[%clk 0:00:35]}  Ra4 {[%clk 0:00:24]} 35. a3 {[%clk 0:00:35]}  h5 {[%clk 0:00:22]} 36. gxh5 {[%clk 0:00:19]}  gxh5 {[%clk 0:00:23]} 37. f4 {[%clk 0:00:18]}  Ra5 {[%clk 0:00:19]} 38. Rc6+ {[%clk 0:00:17]}  Kf5 {[%clk 0:00:17]} 39. Rc7 {[%clk 0:00:17]}  f6 {[%clk 0:00:17]} 40. Rh7 {[%clk 0:00:16]}  Ke4 {[%clk 0:00:17]} 41. Rd7 {[%clk 0:00:12]}  f5 {[%clk 0:00:11]} 42. Re7+ {[%clk 0:00:10]}  Kd3 {[%clk 0:00:11]} 43. Kh4 {[%clk 0:00:11]}  Kc2 {[%clk 0:00:10]} 44. Re2+ {[%clk 0:00:11]}  Kd3 {[%clk 0:00:09]} 45. Re5 {[%clk 0:00:11]}  Kd4 {[%clk 0:00:07]} 46. Re8 {[%clk 0:00:09]}  Rb5 {[%clk 0:00:07]} 47. b4 {[%clk 0:00:09]}  a5 {[%clk 0:00:07]} 48. bxa5 {[%clk 0:00:09]}  Rxa5 {[%clk 0:00:08]} 49. Kxh5 {[%clk 0:00:09]}  Rxa3 {[%clk 0:00:08]} 50. Kg5 {[%clk 0:00:10]}  Ra5 {[%clk 0:00:08]} 51. Rb8 {[%clk 0:00:08]}  Rb5 {[%clk 0:00:05]} 52. Rf8 {[%clk 0:00:09]}  Ke4 {[%clk 0:00:05]} 53. Re8+ {[%clk 0:00:09]}  Kd4 {[%clk 0:00:05]} 54. Rf8 {[%clk 0:00:09]}  Ke4 {[%clk 0:00:03]} 55. Re8+ {[%clk 0:00:09]}  Kf3 {[%clk 0:00:02]} 56. Re5 {[%clk 0:00:08]}  Rc5 {[%clk 0:00:02]} 57. Rxf5 {[%clk 0:00:02]}  Rc8 {[%clk 0:00:01]} 58. Rb5 {[%clk 0:00:02]}  Rg8+ {[%clk 0:00:01]} 59. Kf6 {[%clk 0:00:02]}  Rf8+ {[%clk 0:00:01]} 60. Ke5 {[%clk 0:00:02]}  Re8+ {[%clk 0:00:02]} 61. Kd6 {[%clk 0:00:02]}  Rd8+ {[%clk 0:00:00]} 62. Ke7 {[%clk 0:00:02]} 1-0

[Event "December 5 Early 2023"]
[Site "https://www.chess.com"]
[Date "2023.12.05"]
[Round "10"]
[White "Naroditsky, Daniel"]
[Black "Tran, Tuan Minh"]
[Result "1-0"]
[Board "6"]
[TimeControl "180+1"]
[WhiteFideId "2026961"]
[BlackFideId "12401820"]
[WhiteElo "3161"]
[BlackElo "2944"]
[WhiteTeam "USA"]
[BlackTeam "VIE"]
[WhiteClock "0:00:39"]
[BlackClock "0:00:13"]

1. e4 {[%clk 0:03:00]}  d6 {[%clk 0:02:58]} 2. d4 {[%clk 0:03:00]}  Nf6 {[%clk 0:02:59]} 3. Nc3 {[%clk 0:03:00]}  Nbd7 {[%clk 0:02:59]} 4. g4 {[%clk 0:02:57]}  h6 {[%clk 0:02:56]} 5. h3 {[%clk 0:02:54]}  e5 {[%clk 0:02:56]} 6. Nge2 {[%clk 0:02:51]}  c6 {[%clk 0:02:52]} 7. Bg2 {[%clk 0:02:51]}  Qc7 {[%clk 0:02:50]} 8. Be3 {[%clk 0:02:50]}  b5 {[%clk 0:02:50]} 9. Ng3 {[%clk 0:02:50]}  g6 {[%clk 0:02:46]} 10. O-O {[%clk 0:02:40]}  a5 {[%clk 0:02:29]} 11. f4 {[%clk 0:02:39]}  Bg7 {[%clk 0:02:22]} 12. fxe5 {[%clk 0:02:15]}  dxe5 {[%clk 0:02:23]} 13. d5 {[%clk 0:02:16]}  b4 {[%clk 0:02:18]} 14. d6 {[%clk 0:01:53]}  Qb8 {[%clk 0:02:16]} 15. Na4 {[%clk 0:01:49]}  Ba6 {[%clk 0:02:14]} 16. Rf2 {[%clk 0:01:49]}  O-O {[%clk 0:01:58]} 17. Qd2 {[%clk 0:01:49]}  Kh7 {[%clk 0:01:54]} 18. Rd1 {[%clk 0:01:40]}  Bc4 {[%clk 0:01:49]} 19. b3 {[%clk 0:01:38]}  Be6 {[%clk 0:01:49]} 20. Nf5 {[%clk 0:01:36]}  gxf5 {[%clk 0:01:40]} 21. gxf5 {[%clk 0:01:36]}  Bd5 {[%clk 0:01:13]} 22. exd5 {[%clk 0:01:36]}  cxd5 {[%clk 0:01:14]} 23. Bxd5 {[%clk 0:01:32]}  Nxd5 {[%clk 0:01:15]} 24. Qxd5 {[%clk 0:01:31]}  Qd8 {[%clk 0:01:04]} 25. Kh2 {[%clk 0:01:17]}  Qh4 {[%clk 0:01:02]} 26. Rg2 {[%clk 0:01:03]}  e4 {[%clk 0:00:58]} 27. f6 {[%clk 0:00:55]}  Bxf6 {[%clk 0:00:40]} 28. Qf5+ {[%clk 0:00:55]}  Kh8 {[%clk 0:00:40]} 29. Rg4 {[%clk 0:00:41]}  Be5+ {[%clk 0:00:37]} 30. Qxe5+ {[%clk 0:00:40]}  Nxe5 {[%clk 0:00:37]} 31. Rxh4 {[%clk 0:00:41]}  Nf3+ {[%clk 0:00:35]} 32. Kg3 {[%clk 0:00:42]}  Nxh4 {[%clk 0:00:30]} 33. Kxh4 {[%clk 0:00:43]}  f5 {[%clk 0:00:31]} 34. Bf4 {[%clk 0:00:40]}  Rad8 {[%clk 0:00:13]} 35. d7 {[%clk 0:00:39]} 1-0

[Event "December 5 Early 2023"]
[Site "https://www.chess.com"]
[Date "2023.12.05"]
[Round "10"]
[White "Khismatullin, Denis"]
[Black "Bortnyk, Olexandr"]
[Result "0-1"]
[Board "7"]
[TimeControl "180+1"]
[WhiteFideId "4142578"]
[BlackFideId "14120828"]
[WhiteElo "2948"]
[BlackElo "3072"]
[WhiteTeam "RUS"]
[BlackTeam "UKR"]
[WhiteClock "0:00:00"]
[BlackClock "0:00:41"]

1. d4 {[%clk 0:03:00]}  d6 {[%clk 0:03:00]} 2. Nf3 {[%clk 0:03:00]}  Nf6 {[%clk 0:03:00]} 3. g3 {[%clk 0:02:59]}  g6 {[%clk 0:03:01]} 4. Bg2 {[%clk 0:02:59]}  Bg7 {[%clk 0:03:02]} 5. O-O {[%clk 0:02:59]}  O-O {[%clk 0:03:02]} 6. Re1 {[%clk 0:02:59]}  Bf5 {[%clk 0:03:00]} 7. Nh4 {[%clk 0:02:50]}  Be4 {[%clk 0:03:00]} 8. Bxe4 {[%clk 0:02:49]}  Nxe4 {[%clk 0:03:00]} 9. f3 {[%clk 0:02:49]}  Nf6 {[%clk 0:03:00]} 10. e4 {[%clk 0:02:49]}  c5 {[%clk 0:03:01]} 11. dxc5 {[%clk 0:02:34]}  dxc5 {[%clk 0:03:00]} 12. Qxd8 {[%clk 0:02:33]}  Rxd8 {[%clk 0:03:00]} 13. e5 {[%clk 0:02:31]}  Nd5 {[%clk 0:03:00]} 14. c3 {[%clk 0:02:26]}  Nc6 {[%clk 0:02:57]} 15. f4 {[%clk 0:02:26]}  b5 {[%clk 0:02:58]} 16. Nd2 {[%clk 0:02:23]}  f6 {[%clk 0:02:52]} 17. Ne4 {[%clk 0:02:18]}  c4 {[%clk 0:02:43]} 18. exf6 {[%clk 0:02:17]}  exf6 {[%clk 0:02:44]} 19. f5 {[%clk 0:02:15]}  Ne5 {[%clk 0:02:41]} 20. Nc5 {[%clk 0:02:06]}  Rac8 {[%clk 0:02:18]} 21. Ne6 {[%clk 0:02:00]}  Re8 {[%clk 0:02:19]} 22. Rf1 {[%clk 0:01:53]}  Nd3 {[%clk 0:02:11]} 23. a4 {[%clk 0:01:52]}  b4 {[%clk 0:02:10]} 24. cxb4 {[%clk 0:01:51]}  N5xb4 {[%clk 0:02:00]} 25. Bd2 {[%clk 0:01:48]}  Nd5 {[%clk 0:01:57]} 26. Rab1 {[%clk 0:01:29]}  Rxe6 {[%clk 0:01:57]} 27. fxe6 {[%clk 0:01:28]}  f5 {[%clk 0:01:58]} 28. Nf3 {[%clk 0:01:18]}  Bxb2 {[%clk 0:01:56]} 29. Ne1 {[%clk 0:01:00]}  Bd4+ {[%clk 0:01:50]} 30. Kh1 {[%clk 0:01:00]}  Nc5 {[%clk 0:01:51]} 31. Nf3 {[%clk 0:00:58]}  Bf6 {[%clk 0:01:49]} 32. Rb5 {[%clk 0:00:49]}  c3 {[%clk 0:01:48]} 33. Bg5 {[%clk 0:00:46]}  Bxg5 {[%clk 0:01:35]} 34. Nxg5 {[%clk 0:00:46]}  Ne3 {[%clk 0:01:36]} 35. e7 {[%clk 0:00:39]}  Nd3 {[%clk 0:01:29]} 36. Rb7 {[%clk 0:00:22]}  c2 {[%clk 0:01:22]} 37. Rc7 {[%clk 0:00:17]}  Re8 {[%clk 0:01:19]} 38. Rf3 {[%clk 0:00:13]}  Rxe7 {[%clk 0:01:11]} 39. Rc8+ {[%clk 0:00:08]}  Kg7 {[%clk 0:01:11]} 40. Rxe3 {[%clk 0:00:08]}  Rxe3 {[%clk 0:01:02]} 41. Rxc2 {[%clk 0:00:08]}  Re1+ {[%clk 0:00:51]} 42. Kg2 {[%clk 0:00:08]}  Re7 {[%clk 0:00:52]} 43. Rd2 {[%clk 0:00:08]}  Nc5 {[%clk 0:00:51]} 44. a5 {[%clk 0:00:08]}  h6 {[%clk 0:00:50]} 45. Nf3 {[%clk 0:00:08]}  Ne4 {[%clk 0:00:50]} 46. Rb2 {[%clk 0:00:07]}  Kf6 {[%clk 0:00:45]} 47. a6 {[%clk 0:00:06]}  Re6 {[%clk 0:00:45]} 48. Ra2 {[%clk 0:00:06]}  Rd6 {[%clk 0:00:46]} 49. h4 {[%clk 0:00:05]}  Nc5 {[%clk 0:00:46]} 50. Ra5 {[%clk 0:00:03]}  Nxa6 {[%clk 0:00:46]} 51. h5 {[%clk 0:00:02]}  g5 {[%clk 0:00:46]} 52. Nd4 {[%clk 0:00:03]}  Nc5 {[%clk 0:00:41]} 53. Ra6 {[%clk 0:00:00]}  Rxa6 {[%clk 0:00:41]} 0-1

[Event "December 5 Early 2023"]
[Site "https://www.chess.com"]
[Date "2023.12.05"]
[Round "10"]
[White "Svane, Rasmus"]
[Black "Duda, Jan-Krzysztof"]
[Result "0-1"]
[Board "8"]
[TimeControl "180+1"]
[WhiteFideId "4657101"]
[BlackFideId "1170546"]
[WhiteElo "2940"]
[BlackElo "3056"]
[WhiteTeam "GER"]
[BlackTeam "POL"]
[WhiteClock "0:00:03"]
[BlackClock "0:00:03"]

1. Nf3 {[%clk 0:02:55]}  b5 {[%clk 0:02:58]} 2. e4 {[%clk 0:02:51]}  Bb7 {[%clk 0:02:58]} 3. Bxb5 {[%clk 0:02:50]}  Bxe4 {[%clk 0:02:59]} 4. O-O {[%clk 0:02:50]}  e6 {[%clk 0:02:59]} 5. d4 {[%clk 0:02:50]}  Nf6 {[%clk 0:02:59]} 6. Re1 {[%clk 0:02:49]}  Be7 {[%clk 0:02:59]} 7. c4 {[%clk 0:02:49]}  O-O {[%clk 0:02:58]} 8. Nc3 {[%clk 0:02:49]}  Bb7 {[%clk 0:02:58]} 9. Bf4 {[%clk 0:02:48]}  d6 {[%clk 0:02:56]} 10. h3 {[%clk 0:02:48]}  Nbd7 {[%clk 0:02:55]} 11. Ba4 {[%clk 0:02:32]}  Rb8 {[%clk 0:02:49]} 12. Rb1 {[%clk 0:02:20]}  a6 {[%clk 0:02:47]} 13. Bc2 {[%clk 0:02:16]}  c5 {[%clk 0:02:47]} 14. dxc5 {[%clk 0:02:13]}  dxc5 {[%clk 0:02:27]} 15. Bxb8 {[%clk 0:02:12]}  Qxb8 {[%clk 0:02:28]} 16. Ne4 {[%clk 0:02:02]}  Rd8 {[%clk 0:02:25]} 17. Qe2 {[%clk 0:02:01]}  Bxe4 {[%clk 0:02:16]} 18. Bxe4 {[%clk 0:02:01]}  Qc7 {[%clk 0:02:09]} 19. Rbd1 {[%clk 0:01:56]}  Rb8 {[%clk 0:02:09]} 20. Bb1 {[%clk 0:01:47]}  g6 {[%clk 0:02:08]} 21. Ng5 {[%clk 0:01:45]}  Nf8 {[%clk 0:02:08]} 22. Nf3 {[%clk 0:01:35]}  N8d7 {[%clk 0:02:06]} 23. Rd2 {[%clk 0:01:34]}  Bf8 {[%clk 0:02:04]} 24. Red1 {[%clk 0:01:28]}  Bh6 {[%clk 0:02:03]} 25. Rd3 {[%clk 0:01:27]}  Rb6 {[%clk 0:02:01]} 26. Qc2 {[%clk 0:01:06]}  Bf4 {[%clk 0:01:46]} 27. Qc3 {[%clk 0:01:04]}  e5 {[%clk 0:01:17]} 28. Nd2 {[%clk 0:00:52]}  e4 {[%clk 0:01:11]} 29. Re3 {[%clk 0:00:22]}  Bh2+ {[%clk 0:00:31]} 30. Kh1 {[%clk 0:00:21]}  Be5 {[%clk 0:00:31]} 31. Qc2 {[%clk 0:00:11]}  Rxb2 {[%clk 0:00:31]} 32. Qc1 {[%clk 0:00:12]}  Bd4 {[%clk 0:00:25]} 33. Nb3 {[%clk 0:00:08]}  Rxf2 {[%clk 0:00:18]} 34. Nxd4 {[%clk 0:00:08]}  cxd4 {[%clk 0:00:19]} 35. Rxd4 {[%clk 0:00:09]}  Qf4 {[%clk 0:00:19]} 36. Rd1 {[%clk 0:00:07]}  Ne5 {[%clk 0:00:18]} 37. Rde1 {[%clk 0:00:05]}  Nf3 {[%clk 0:00:15]} 38. Rxf3 {[%clk 0:00:03]}  exf3 {[%clk 0:00:13]} 39. Qxf4 {[%clk 0:00:03]}  fxg2+ {[%clk 0:00:13]} 40. Kg1 {[%clk 0:00:03]}  Rxf4 {[%clk 0:00:14]} 41. Rc1 {[%clk 0:00:03]}  Rf1+ {[%clk 0:00:14]} 42. Rxf1 {[%clk 0:00:03]}  gxf1=Q+ {[%clk 0:00:15]} 43. Kxf1 {[%clk 0:00:03]}  Kf8 {[%clk 0:00:15]} 44. Ke2 {[%clk 0:00:04]}  Ke7 {[%clk 0:00:15]} 45. c5 {[%clk 0:00:03]}  Nd7 {[%clk 0:00:15]} 46. c6 {[%clk 0:00:03]}  Ne5 {[%clk 0:00:15]} 47. Be4 {[%clk 0:00:01]}  Kd6 {[%clk 0:00:15]} 48. c7 {[%clk 0:00:02]}  Kxc7 {[%clk 0:00:15]} 49. Ke3 {[%clk 0:00:01]}  a5 {[%clk 0:00:16]} 50. Kd4 {[%clk 0:00:01]}  Kd6 {[%clk 0:00:16]} 51. Bd5 {[%clk 0:00:01]}  g5 {[%clk 0:00:16]} 52. Ke4 {[%clk 0:00:01]}  f5+ {[%clk 0:00:16]} 53. Kd4 {[%clk 0:00:01]}  h5 {[%clk 0:00:15]} 54. Bg2 {[%clk 0:00:01]}  h4 {[%clk 0:00:15]} 55. Bh1 {[%clk 0:00:01]}  g4 {[%clk 0:00:16]} 56. hxg4 {[%clk 0:00:01]}  fxg4 {[%clk 0:00:16]} 57. Ke4 {[%clk 0:00:02]}  g3 {[%clk 0:00:05]} 58. Kf4 {[%clk 0:00:02]}  a4 {[%clk 0:00:04]} 59. a3 {[%clk 0:00:03]}  Nc4 {[%clk 0:00:04]} 60. Kg4 {[%clk 0:00:03]}  Nxa3 {[%clk 0:00:04]} 61. Kxh4 {[%clk 0:00:04]}  Nc4 {[%clk 0:00:03]} 62. Kxg3 {[%clk 0:00:03]}  a3 {[%clk 0:00:03]} 0-1

[Event "December 5 Early 2023"]
[Site "https://www.chess.com"]
[Date "2023.12.05"]
[Round "10"]
[White "Zhigalko, Sergei"]
[Black "So, Wesley"]
[Result "1/2-1/2"]
[Board "9"]
[TimeControl "180+1"]
[WhiteFideId "13502956"]
[BlackFideId "5202213"]
[WhiteElo "2912"]
[BlackElo "3048"]
[WhiteTeam "BLR"]
[BlackTeam "USA"]
[WhiteClock "0:00:02"]
[BlackClock "0:00:05"]

1. e4 {[%clk 0:03:00]}  e6 {[%clk 0:02:57]} 2. d4 {[%clk 0:03:01]}  d5 {[%clk 0:02:58]} 3. e5 {[%clk 0:03:01]}  c5 {[%clk 0:02:57]} 4. c3 {[%clk 0:03:02]}  Nc6 {[%clk 0:02:57]} 5. Nf3 {[%clk 0:03:02]}  Qb6 {[%clk 0:02:57]} 6. Bd3 {[%clk 0:03:03]}  cxd4 {[%clk 0:02:56]} 7. O-O {[%clk 0:03:03]}  Bd7 {[%clk 0:02:56]} 8. Re1 {[%clk 0:03:03]}  Nge7 {[%clk 0:02:53]} 9. h4 {[%clk 0:03:03]}  h6 {[%clk 0:02:48]} 10. h5 {[%clk 0:03:03]}  Rc8 {[%clk 0:02:23]} 11. a3 {[%clk 0:03:00]}  a6 {[%clk 0:02:14]} 12. b4 {[%clk 0:03:00]}  dxc3 {[%clk 0:02:04]} 13. Nxc3 {[%clk 0:03:01]}  Nxb4 {[%clk 0:01:58]} 14. Na4 {[%clk 0:03:02]}  Bxa4 {[%clk 0:01:57]} 15. Qxa4+ {[%clk 0:03:02]}  Nbc6 {[%clk 0:01:57]} 16. Rb1 {[%clk 0:02:56]}  Qa5 {[%clk 0:01:41]} 17. Qg4 {[%clk 0:02:37]}  Rc7 {[%clk 0:01:27]} 18. a4 {[%clk 0:01:41]}  Nc8 {[%clk 0:01:16]} 19. Bd2 {[%clk 0:01:35]}  Qc5 {[%clk 0:01:15]} 20. Rec1 {[%clk 0:01:30]}  Qe7 {[%clk 0:01:06]} 21. a5 {[%clk 0:01:15]}  Qd7 {[%clk 0:01:01]} 22. Rc2 {[%clk 0:00:58]}  N8a7 {[%clk 0:00:42]} 23. Rbc1 {[%clk 0:00:57]}  Rc8 {[%clk 0:00:35]} 24. Be3 {[%clk 0:00:51]}  Ra8 {[%clk 0:00:28]} 25. Bxa7 {[%clk 0:00:23]}  Rxa7 {[%clk 0:00:29]} 26. Nd4 {[%clk 0:00:24]}  Ba3 {[%clk 0:00:18]} 27. Qxg7 {[%clk 0:00:21]}  Rf8 {[%clk 0:00:18]} 28. Rxc6 {[%clk 0:00:14]}  bxc6 {[%clk 0:00:19]} 29. Rxc6 {[%clk 0:00:13]}  Be7 {[%clk 0:00:14]} 30. Bxa6 {[%clk 0:00:09]}  Rxa6 {[%clk 0:00:09]} 31. Rxa6 {[%clk 0:00:10]}  Qa4 {[%clk 0:00:08]} 32. Ra8+ {[%clk 0:00:06]}  Kd7 {[%clk 0:00:08]} 33. Rxf8 {[%clk 0:00:06]}  Qd1+ {[%clk 0:00:08]} 34. Kh2 {[%clk 0:00:06]}  Qxh5+ {[%clk 0:00:09]} 35. Kg1 {[%clk 0:00:04]}  Qd1+ {[%clk 0:00:09]} 36. Kh2 {[%clk 0:00:04]}  Qh5+ {[%clk 0:00:09]} 37. Kg1 {[%clk 0:00:02]}  Qd1+ {[%clk 0:00:08]} 38. Kh2 {[%clk 0:00:02]}  Qh5+ {[%clk 0:00:05]} 1/2-1/2